bitfinex-derivatives/quotes_ETHF0:USTF0_20240830
["timestamp","ask_amount","ask_price","bid_price","bid_amount"]
[1725036639505,4.69281457,2457.1,2457.0,1.01325699]
[1725036639700,4.69281457,2457.1,2457.0,0.40705]
[1725036639895,4.69281457,2457.1,2457.0,1.01326241]
[1725036640399,4.69281457,2457.1,2457.0,3.92908853]
[1725036640704,44.0078,2457.7,2457.6,0.40696]
[1725036641093,52.96413791,2457.7,2457.5,0.40697]
[1725036641293,52.96413791,2457.7,2457.5,0.40696]
[1725036641294,3.2078,2457.6,2457.5,0.40696]
[1725036641700,7.87714431,2457.6,2457.5,0.40696]
[1725036641896,12.35290431,2457.6,2457.4,0.40698]
[1725036642198,3.92699,2457.5,2457.2,0.40701]
[1725036642394,3.2078,2457.3,2457.1,1.47127629]
[1725036642589,3.2078,2457.3,2457.2,0.40702]
[1725036642791,4.2895,2457.3,2457.2,0.40702]
[1725036643099,7.68237219,2457.3,2457.2,0.40702]
[1725036643997,11.75197219,2457.3,2457.2,0.40702]
[1725036645401,15.27197219,2457.3,2457.0,0.40705]
[1725036645609,2.64944,2457.2,2457.0,0.40705]
[1725036646008,4.62686076,2457.1,2457.0,0.40705]
[1725036646521,0.40706,2457.0,2456.9,0.00610252]
[1725036646722,7.2782,2457.0,2456.9,0.41317252]
[1725036647008,12.38489669,2457.0,2456.9,0.00610252]
[1725036647213,15.90489669,2457.0,2456.9,0.00610252]
[1725036647397,21.90489669,2457.0,2456.5,0.40713]
[1725036647597,0.4071,2456.8,2456.6,0.40712]
[1725036648000,9.39747891,2456.7,2456.5,0.40713]
[1725036648208,9.39747891,2456.7,2456.4,0.40715]
[1725036648209,10.13306891,2456.7,2456.4,0.40715]
[1725036648405,14.61057891,2456.7,2456.4,0.40715]
[1725036648602,14.61057891,2456.7,2456.5,0.40714]
[1725036648603,10.99566891,2456.7,2456.5,0.40714]
[1725036648809,6.92526891,2456.7,2456.5,0.40714]
[1725036649009,4.0704,2456.6,2456.5,0.40714]
[1725036649307,8.34614692,2456.6,2456.4,0.40715]
[1725036649508,8.34614692,2456.6,2456.5,0.40714]
[1725036649714,4.27574692,2456.6,2456.4,0.40714]
[1725036649909,1.0809,2456.5,2456.3,0.00610252]
[1725036650098,1.48804,2456.5,2456.3,0.00610252]
[1725036650303,4.27574692,2456.4,2456.3,0.00610252]
[1725036650507,7.48354692,2456.4,2456.3,0.00610252]
[1725036650702,7.69145605,2456.4,2456.3,0.00610252]
[1725036650903,12.16981605,2456.4,2456.3,0.00610252]
[1725036651506,15.68981605,2456.4,2456.3,0.00610252]
[1725036651814,1.01794,2456.3,2455.8,1.51155]
[1725036652012,0.40721,2456.1,2455.8,0.40725]
[1725036652218,6.78002977,2456.2,2456.0,0.40721]
[1725036652416,6.3071,2456.2,2456.0,0.40721]
[1725036652710,4.65224531,2456.1,2455.6,4.53823]
[1725036652915,4.65224531,2456.1,2456.0,0.40722]
[1725036653105,4.65224531,2456.1,2455.8,0.40724]
[1725036653106,0.40722,2456.0,2455.8,0.40724]
[1725036653302,3.2078,2455.9,2455.8,0.40724]
[1725036653508,7.63409469,2455.9,2455.8,0.40724]
[1725036653821,3.2078,2455.9,2455.8,0.40724]
[1725036654311,0.40722,2456.1,2455.9,0.40724]
[1725036654816,8.9637,2456.2,2455.9,0.40724]
[1725036654817,4.42140854,2456.0,2455.9,0.40724]
[1725036655322,4.42140854,2456.1,2456.0,0.40722]
[1725036655521,9.9221,2456.2,2456.0,0.40722]
[1725036655728,4.96596315,2456.1,2455.9,0.40723]
[1725036655927,4.55875315,2456.1,2456.0,0.40722]
[1725036656421,8.62995315,2456.1,2456.0,0.40722]
[1725036657021,4.55875315,2456.1,2456.0,0.40722]
[1725036657221,4.55875315,2456.1,2456.0,1.42528]
[1725036657418,4.55875315,2456.1,2456.0,5.49648]
[1725036657624,3.2078,2456.2,2456.1,1.42523]
[1725036657919,3.2078,2456.2,2456.1,0.40721]
[1725036658116,11.78614424,2456.2,2456.1,0.40721]
[1725036658524,7.71494424,2456.2,2456.1,0.40721]
[1725036658721,3.2078,2456.2,2456.1,0.40721]
[1725036659126,3.2078,2456.2,2456.1,1.42523]
[1725036660331,3.2078,2456.2,2456.1,0.40721]
[1725036661625,11.65815874,2456.2,2456.1,0.40721]
[1725036662430,3.2078,2456.2,2456.1,0.40721]
[1725036663523,3.2078,2456.2,2456.1,1.42523]
[1725036663831,3.2078,2456.5,2456.4,0.40716]
[1725036664227,2.63492,2456.7,2456.6,0.40712]
[1725036664539,7.48835577,2456.7,2456.6,0.40712]
[1725036664732,10.94298932,2456.7,2456.6,0.40712]
[1725036664932,4.64478932,2456.7,2456.6,0.40712]
[1725036665633,4.64478932,2456.7,2456.6,1.42493]
[1725036666138,5.41490252,2456.8,2456.7,1.42488]
[1725036666139,3.21390252,2456.8,2456.7,1.42488]
[1725036666431,3.21390252,2456.8,2456.7,2.47878]
[1725036666835,0.00610252,2456.8,2456.7,6.54918]
[1725036667033,0.00610252,2456.8,2456.7,10.06918]
[1725036667631,0.00610252,2456.8,2456.7,17.08695]
[1725036667831,3.927,2457.4,2457.2,0.40701]
[1725036668032,3.927,2457.4,2457.1,0.40703]
[1725036668033,0.40701,2457.3,2457.1,0.40703]
[1725036668332,0.40705,2457.1,2456.9,0.40707]
[1725036668537,0.40705,2457.1,2456.8,0.40708]
[1725036668838,0.40705,2457.1,2456.9,0.40707]
[1725036668839,5.81052418,2457.0,2456.9,0.40707]
[1725036669230,9.88092418,2457.0,2456.9,0.40707]
[1725036669631,0.00610252,2457.2,2456.7,0.00610252]
[1725036669946,4.4305433,2457.0,2456.9,0.40707]
[1725036670234,0.40706,2457.0,2456.7,0.41319252]
[1725036670430,2.2223,2456.9,2456.8,0.40709]
[1725036670841,10.60794082,2456.9,2456.8,0.40709]
[1725036671034,10.60794082,2456.9,2456.7,0.41320252]
[1725036671343,1.088,2456.8,2456.7,0.41320252]
[1725036671635,5.62351013,2456.8,2456.7,0.41321252]
[1725036672433,9.69391013,2456.8,2456.7,0.00610252]
[1725036672844,9.69391013,2456.8,2456.7,0.41321252]
[1725036673232,4.53551013,2456.8,2456.7,0.41321252]
[1725036673534,0.00610252,2457.2,2457.1,0.40704]
[1725036675437,0.00610252,2457.2,2456.9,0.40706]
[1725036675641,3.2078,2457.1,2456.8,2.2016]
[1725036675839,3.2078,2457.1,2457.0,0.40706]
[1725036676040,4.79578407,2457.0,2456.8,0.40709]
[1725036676341,0.40707,2457.0,2456.7,0.00610252]
[1725036676638,1.0506,2456.9,2456.8,0.40709]
[1725036676843,5.40736352,2456.9,2456.8,0.40709]
[1725036677542,9.88484352,2456.9,2456.7,0.41319252]
[1725036677840,3.2078,2456.8,2456.7,0.00610252]
[1725036678047,3.2078,2456.8,2456.7,0.41321252]
[1725036678238,12.27884072,2456.8,2456.7,0.00610252]
[1725036678540,4.59355072,2456.8,2456.7,0.41321252]
[1725036679139,12.27884072,2456.8,2456.7,0.00610252]
[1725036679645,11.87175072,2456.8,2456.7,0.41321252]
[1725036680143,7.80135072,2456.8,2456.7,0.41321252]
[1725036680334,12.27884072,2456.8,2456.7,0.00610252]
[1725036681837,21.79884072,2456.8,2456.7,0.00610252]
[1725036682036,22.81657072,2456.8,2456.7,0.00610252]
[1725036682548,0.40716,2456.4,2456.2,1.0747]
[1725036682842,4.41853002,2456.3,2456.1,0.4072]
[1725036683046,1.33989432,2456.2,2455.8,1.06423629]
[1725036683249,3.2078,2456.1,2456.0,0.40722]
[1725036683435,1.1413,2456.2,2455.8,4.58423629]
[1725036683638,6.88588067,2456.8,2456.0,4.53806]
[1725036683838,2.2332,2456.7,2456.1,2.11589]
[1725036684049,6.4870017,2456.7,2456.6,0.40712]
[1725036684352,6.4870017,2456.7,2456.5,0.40713]
[1725036684536,6.4870017,2456.7,2456.2,1.06423629]
[1725036684739,6.4870017,2456.7,2456.1,4.37433629]
[1725036685146,6.4870017,2456.7,2456.5,0.40714]
[1725036686151,6.8941117,2456.7,2456.4,0.40714]
[1725036686353,6.4870017,2456.7,2456.5,0.40714]
[1725036687746,6.4870017,2456.7,2456.6,0.40712]
[1725036688357,5.3734017,2456.7,2456.6,0.40712]
[1725036690451,1.1171,2456.9,2456.7,0.4071]
[1725036690646,1.1171,2456.9,2456.8,0.40709]
[1725036691056,5.72106107,2456.9,2456.8,0.40709]
[1725036691453,9.79146107,2456.9,2456.7,0.4071]
[1725036691651,5.72106107,2456.9,2456.8,0.40709]
[1725036691847,9.79146107,2456.9,2456.7,0.4071]
[1725036692056,5.72106107,2456.9,2456.7,0.4071]
[1725036692860,5.72106107,2456.9,2456.8,0.40709]
[1725036693161,5.72106107,2456.9,2456.7,0.40709]
[1725036693357,5.72106107,2456.9,2456.8,0.40705]
[1725036693957,4.60396107,2456.9,2456.8,1.01326369]
[1725036694256,4.60396107,2456.9,2456.8,0.40705]
[1725036694647,4.60396107,2456.9,2456.8,3.0485273]
[1725036694648,3.74304107,2456.9,2456.8,3.0485273]
[1725036694855,0.00610252,2457.2,2457.1,1.42451]
[1725036695055,2.52e-06,2457.2,2457.1,7.8629097]
[1725036695357,2.52e-06,2457.2,2457.1,21.65026327]
[1725036695558,2.52e-06,2457.2,2457.1,22.45331412]
[1725036695764,2.52e-06,2457.2,2457.1,23.08952742]
[1725036696761,1.0401,2458.3,2458.2,0.40682]
[1725036696962,5.1081,2458.3,2458.2,0.40682]
[1725036697259,4.52314057,2458.2,2458.1,0.40683]
[1725036697458,4.52314057,2458.2,2457.8,8.9588]
[1725036697459,3.52,2458.4,2457.8,5.4388]
[1725036697660,4.71061266,2458.2,2458.0,0.40684]
[1725036697865,4.71061266,2458.2,2458.1,0.40683]
[1725036698167,0.00610252,2458.3,2457.9,0.00610252]
[1725036698358,0.00610252,2458.3,2458.0,0.40684]
[1725036698560,0.00610252,2458.3,2457.9,0.00610252]
[1725036698561,4.71061266,2458.2,2458.1,0.40683]
[1725036700259,0.00610252,2458.3,2458.2,0.40682]
[1725036702557,0.00610252,2458.3,2458.2,4.94387]
[1725036702767,0.00610252,2458.3,2458.2,9.01187]
[1725036703458,0.00610252,2458.3,2458.2,11.04647341]
[1725036704761,2.52e-06,2458.3,2458.2,18.06352341]
[1725036704967,2.52e-06,2458.3,2458.2,20.09763341]
[1725036707470,2.52e-06,2458.3,2458.2,18.06352341]
[1725036707765,2.52e-06,2458.3,2458.2,10.02892]
[1725036707967,2.52e-06,2458.3,2458.2,16.02892]
[1725036708670,2.52e-06,2458.3,2458.2,18.06303]
[1725036713167,2.52e-06,2458.3,2458.2,10.02892]
[1725036713369,0.40592,2458.8,2458.6,0.40674]
[1725036713669,2.1999,2458.7,2458.6,0.40674]
[1725036713867,2.1999,2458.7,2458.6,3.61454]
[1725036714074,2.60663,2458.7,2458.6,3.61454]
[1725036714573,2.1999,2458.7,2458.4,3.52]
[1725036714772,0.40676,2458.6,2458.4,3.92678]
[1725036715273,2.60664,2458.7,2458.5,0.40677]
[1725036715474,2.60664,2458.7,2458.5,0.40676]
[1725036715475,2.1999,2458.7,2458.5,0.40676]
[1725036715675,0.40675,2458.6,2458.5,0.40676]
[1725036715876,2.60665,2458.7,2458.5,0.40676]
[1725036717165,2.60665,2458.7,2458.6,0.40675]
[1725036717572,2.60665,2458.7,2458.5,0.40675]
[1725036717769,2.1999,2458.7,2458.6,0.40675]
[1725036717970,2.60663,2458.7,2458.6,0.40675]
[1725036718171,2.1999,2458.7,2458.6,0.40675]
[1725036718775,2.60664,2458.7,2458.4,3.52]
[1725036718973,2.1999,2458.7,2458.6,0.40675]
[1725036720478,2.1999,2458.7,2458.6,4.94363]
[1725036721384,0.00610252,2458.9,2458.8,1.42352]
[1725036721582,0.00610252,2458.9,2458.8,5.96032]
[1725036721774,0.00610252,2458.9,2458.8,9.01072]
[1725036722081,0.00610252,2458.9,2458.8,7.99392]
[1725036722284,0.00610252,2458.9,2458.8,0.40672]
[1725036722579,0.00610252,2458.9,2458.7,3.61452]
[1725036722880,0.41281252,2458.9,2458.7,3.61452]
[1725036723082,0.00610252,2458.9,2458.8,0.40672]
[1725036724174,0.00610252,2458.9,2458.8,7.99392]
[1725036724579,0.00610252,2458.9,2458.8,9.01072]
[1725036724784,0.00610252,2458.9,2458.8,10.09842]
[1725036725481,0.00610252,2458.9,2458.8,11.11532]
[1725036725688,0.00610252,2458.9,2458.8,10.09842]
[1725036725981,0.00610252,2458.9,2458.8,9.08162]
[1725036726481,0.00610252,2458.9,2458.8,10.09852]
[1725036727283,0.00610252,2458.9,2458.8,11.19732]
[1725036727883,0.00610252,2458.9,2458.8,12.21422]
[1725036729284,6.05327,2460.0,2459.8,0.40658]
[1725036729486,0.40659,2459.9,2459.8,0.40659]
[1725036729789,0.40664,2459.6,2459.1,8.69478]
[1725036729976,0.40666,2459.4,2459.1,3.52]
[1725036730180,7.98896004,2459.5,2459.4,0.40666]
[1725036730376,3.2833,2459.5,2459.4,0.40666]
[1725036730778,3.2833,2459.5,2459.4,1.42332]
[1725036730983,3.2833,2459.5,2459.4,0.40666]
[1725036731377,2.2389,2459.5,2459.4,5.48892]
[1725036731579,2.2389,2459.5,2459.4,1.42332]
[1725036732185,2.2389,2459.5,2459.4,0.40666]
[1725036733886,2.2389,2459.5,2459.4,1.42332]
[1725036734692,41.00065658,2459.9,2459.6,0.40663]
[1725036734886,2.2528,2459.8,2459.7,1.42314]
[1725036735387,2.2528,2459.8,2459.7,2.43967]
[1725036735590,2.2528,2459.8,2459.7,1.42314]
[1725036737091,2.2528,2459.8,2459.7,6.50527]
[1725036737392,0.2,2460.0,2459.9,0.40658]
[1725036739918,3.4078,2460.0,2459.9,0.40658]
[1725036740092,3.4078,2460.0,2459.3,5.61099138]
[1725036740093,0.40655,2459.9,2459.3,5.61099138]
[1725036740399,0.2,2460.0,2459.9,0.40654]
[1725036741699,0.2,2460.0,2459.9,3.92654]
[1725036741900,0.2,2460.0,2459.9,9.00769]
[1725036742194,0.2,2460.0,2459.9,13.1112763]
[1725036742391,0.2,2460.0,2459.9,11.07813138]
[1725036742897,0.2,2460.0,2459.9,19.11125019]
[1725036743099,0.2,2460.0,2459.9,18.05715881]
[1725036743288,0.2,2460.0,2459.9,17.08575598]
[1725036743795,0.2,2460.0,2459.9,18.02885598]
[1725036744600,0.2,2460.0,2459.9,20.06191997]
[1725036745296,0.2,2460.0,2459.9,18.02885598]
[1725036745789,0.2,2460.0,2459.9,20.47606151]
[1725036745986,0.2,2460.0,2459.9,20.9954826]
[1725036746389,0.2,2460.0,2459.9,20.99533757]
[1725036746695,1e-05,2460.0,2459.9,20.99533757]
[1725036746896,3.2078,2460.9,2460.7,0.4064]
[1725036746897,1.8882,2460.8,2460.7,0.4064]
[1725036747104,2.2946,2460.8,2460.6,0.40641]
[1725036747298,0.40641,2460.7,2460.5,0.41253252]
[1725036747599,2.50126954,2460.8,2460.7,0.4064]
[1725036747899,2.09486954,2460.8,2460.7,0.4064]
[1725036748202,1.8882,2460.8,2460.7,0.4064]
[1725036748797,2.2946,2460.8,2460.6,0.40641]
[1725036749305,1.8882,2460.8,2460.5,0.41253252]
[1725036749601,0.40641,2460.7,2460.5,0.41253252]
[1725036749900,0.40642,2460.6,2460.5,0.41254252]
[1725036750102,3.61422,2460.6,2460.5,0.00610252]
[1725036750303,7.67822,2460.6,2460.5,0.00610252]
[1725036750496,3.61422,2460.6,2460.5,0.00610252]
[1725036750994,0.40641,2460.7,2460.5,0.41254252]
[1725036751193,2.08671434,2460.8,2460.5,0.00610252]
[1725036751390,2.08671434,2460.8,2460.5,0.41253252]
[1725036751391,0.40641,2460.7,2460.5,0.41253252]
[1725036751596,0.40642,2460.6,2460.5,0.41253252]
[1725036751901,0.40642,2460.6,2460.5,0.00610252]
[1725036752292,0.40642,2460.7,2460.5,0.41253252]
[1725036752899,41.20642,2460.7,2460.5,0.41253252]
[1725036753303,40.8,2460.7,2460.6,0.40642]
[1725036753501,2.49311434,2460.8,2460.6,0.40642]
[1725036753706,2.49310434,2460.8,2460.6,0.40641]
[1725036753907,2.49311434,2460.8,2460.6,0.40642]
[1725036754413,2.08671434,2460.8,2460.7,0.4064]
[1725036755606,2.08671434,2460.8,2460.5,0.00610252]
[1725036755607,6.15071434,2460.8,2460.5,0.00610252]
[1725036755802,6.15071434,2460.8,2460.1,0.4065]
[1725036755803,0.40648,2460.3,2460.1,0.4065]
[1725036756002,1.8051,2460.2,2460.1,0.4065]
[1725036757301,1.8051,2460.2,2460.1,3.9265]
[1725036759400,1.8051,2460.2,2460.1,7.9913]
[1725036760313,1.8051,2460.2,2460.1,3.9265]
[1725036761204,1.8051,2460.2,2460.0,3.61431]
[1725036761507,1.8051,2460.2,2460.1,0.4065]
[1725036761699,1.8051,2460.2,2460.0,3.2078]
[1725036761897,0.40652,2460.0,2459.9,0.00610252]
[1725036762216,3.61432,2460.0,2459.9,0.00610252]
[1725036762409,4.1133,2460.0,2459.9,0.41264252]
[1725036762612,4.51982,2460.0,2459.9,0.00610252]
[1725036763005,4.1133,2460.0,2459.9,0.00610252]
[1725036763308,0.9055,2460.0,2459.9,0.41264252]
[1725036764812,0.9055,2460.0,2459.5,2.07687683]
[1725036764813,0.40658,2459.7,2459.4,4.26816683]
[1725036765003,2.2869,2459.6,2459.2,1.06036683]
[1725036765208,6.88114522,2459.6,2459.4,0.40662]
[1725036765408,0.40661,2459.5,2459.3,0.40662]
[1725036765610,6.47454522,2459.6,2459.1,7.78816683]
[1725036765810,0.40661,2459.5,2459.2,0.40665]
[1725036766016,0.40661,2459.5,2459.2,0.40664]
[1725036766408,0.40661,2459.5,2459.1,6.73390252]
[1725036766723,6.47454522,2459.6,2459.3,3.52]
[1725036767021,6.88113522,2459.6,2459.3,3.92662]
[1725036767214,0.4066,2459.5,2459.3,3.92662]
[1725036767411,0.4066,2459.5,2459.2,0.40664]
[1725036767611,0.4066,2459.5,2459.3,0.40663]
[1725036767813,6.88114522,2459.6,2459.3,0.40663]
[1725036768013,1.32432,2459.4,2459.2,0.40664]
[1725036768316,0.9177,2459.4,2459.2,0.40665]
[1725036768618,0.40664,2459.3,2459.1,7.14055252]
[1725036768813,0.40665,2459.2,2459.1,0.00610252]
[1725036769615,1.32433,2459.4,2459.2,0.40664]
[1725036769818,1.32432,2459.4,2459.2,0.40665]
[1725036770123,0.9177,2459.4,2459.3,0.40664]
[1725036770624,3.2078,2459.5,2459.4,0.40662]
[1725036771130,6.9396,2459.6,2459.5,0.4066]
[1725036771730,5.0706,2459.6,2459.5,4.4722]
[1725036772231,0.9472,2459.8,2459.7,0.40657]
[1725036772624,0.9472,2459.8,2459.5,1.06036683]
[1725036772826,0.40659,2459.6,2459.4,1.06036683]
[1725036773140,4.155,2459.8,2459.7,0.40657]
[1725036773324,7.90334511,2460.3,2459.5,5.59686683]
[1725036773638,7.90334511,2460.3,2460.0,0.40652]
[1725036773639,2.7981,2460.2,2460.0,0.40652]
[1725036773934,3.20459,2460.2,2459.8,0.40654]
[1725036774442,6.72459,2460.2,2459.9,0.40653]
[1725036774638,6.72459,2460.2,2459.6,1.06036683]
[1725036774935,6.3181,2460.2,2460.0,0.40652]
[1725036775140,2.7981,2460.2,2460.1,0.4065]
[1725036775330,2.7981,2460.2,2460.0,0.40651]
[1725036776139,2.7981,2460.2,2460.1,0.4065]
[1725036776633,2.7981,2460.2,2460.0,0.40651]
[1725036776830,2.7981,2460.2,2460.1,0.4065]
[1725036777133,2.7981,2460.2,2459.7,1.06036683]
[1725036777334,2.7981,2460.2,2460.0,0.40651]
[1725036777537,2.7981,2460.2,2460.1,0.4065]
[1725036778132,2.7981,2460.2,2459.7,1.06036683]
[1725036778327,2.7981,2460.2,2460.1,0.4065]
[1725036778533,1.9061,2460.2,2460.1,0.4065]
[1725036780337,1.9061,2460.2,2460.0,0.40651]
[1725036780541,1.9061,2460.2,2459.8,1.06036683]
[1725036780744,1.9061,2460.2,2460.1,0.4065]
[1725036781335,1.9061,2460.2,2460.0,0.40651]
[1725036781640,2.31259,2460.2,2459.9,0.40652]
[1725036781835,2.3126,2460.2,2459.9,0.40652]
[1725036782430,3.52,2460.0,2459.7,3.2078]
[1725036782636,0.40655,2459.9,2459.7,3.61436]
[1725036782837,5.4261,2460.2,2459.9,0.40652]
[1725036783034,1.9061,2460.2,2460.1,0.4065]
[1725036783449,1.9061,2460.2,2459.7,7.07117025]
[1725036783450,2.31259,2460.2,2460.0,0.40651]
[1725036783639,2.31259,2460.2,2459.7,7.07117025]
[1725036783640,1.9061,2460.2,2460.1,0.4065]
[1725036784441,2.31259,2460.2,2460.0,0.40651]
[1725036784747,2.31259,2460.2,2459.9,1.95356683]
[1725036784748,1.9061,2460.2,2460.1,0.4065]
[1725036784945,2.31259,2460.2,2460.0,0.40651]
[1725036785135,2.31259,2460.2,2460.1,0.4065]
[1725036785136,1.9061,2460.2,2460.1,0.4065]
[1725036786141,3.2078,2460.3,2460.2,0.40649]
[1725036786343,0.00610252,2460.4,2460.3,0.40647]
[1725036786938,0.00610252,2460.4,2460.2,0.40648]
[1725036786939,3.62036252,2460.4,2460.2,0.40648]
[1725036787250,3.62037252,2460.4,2460.2,0.40647]
[1725036787444,0.9411,2460.3,2460.2,0.40647]
[1725036788145,3.21390252,2460.4,2460.3,0.40647]
[1725036789242,3.21390252,2460.4,2460.3,0.40647]
[1725036789446,3.62035252,2460.4,2460.2,0.40647]
[1725036789644,3.62035252,2460.4,2460.0,1.99266683]
[1725036789839,3.62035252,2460.4,2460.2,0.40647]
[1725036790036,0.40648,2460.3,2460.1,0.40649]
[1725036790843,0.40649,2460.2,2460.0,0.40651]
[1725036791044,0.9256,2460.1,2460.0,0.40651]
[1725036791450,0.40652,2460.0,2459.8,4.26816683]
[1725036791646,0.40652,2460.0,2459.9,0.6057436]
[1725036791852,0.40652,2460.0,2459.8,0.40655]
[1725036792052,4.1334,2460.1,2459.7,1.46692683]
[1725036792053,0.40654,2459.9,2459.7,1.46692683]
[1725036792353,0.40654,2459.9,2459.8,0.60575677]
[1725036792749,0.40653,2460.0,2459.8,1.01230677]
[1725036792951,0.40655,2459.9,2459.7,1.46693683]
[1725036793144,3.61436,2459.8,2459.6,1.06036683]
[1725036793445,3.61436,2459.8,2459.7,0.60578646]
[1725036794242,3.61436,2459.8,2459.6,1.46693683]
[1725036794443,3.61436,2459.8,2459.7,0.60579188]
[1725036794853,3.61436,2459.8,2459.6,1.46693683]
[1725036794854,0.40657,2459.7,2459.6,1.06036683]
[1725036795052,0.40657,2459.7,2459.6,1.66615886]
[1725036795053,1.34317,2459.7,2459.6,1.66615886]
[1725036795351,1.34317,2459.7,2459.4,3.38745025]
[1725036795352,6.01863,2459.7,2459.4,1.06036683]
[1725036795545,0.4066,2459.5,2459.4,1.06036683]
[1725036795746,1.317,2459.6,2459.4,2.07280637]
[1725036795946,1.317,2459.6,2459.4,1.46698683]
[1725036796449,0.40662,2459.4,2459.3,1.06036683]
[1725036796651,1.01651,2459.5,2459.3,1.66621267]
[1725036796856,1.01651,2459.5,2459.2,1.06036683]
[1725036797056,0.40664,2459.3,2459.2,1.06036683]
[1725036797365,0.40663,2459.4,2459.2,1.46700683]
[1725036797556,0.40664,2459.3,2459.2,0.60585721]
[1725036797856,0.40664,2459.3,2459.2,0.6058616]
[1725036798060,8.98514806,2459.3,2459.2,0.6058616]
[1725036798242,0.40664,2459.3,2459.2,0.6058616]
[1725036798752,0.40664,2459.3,2459.1,1.06646935]
[1725036798753,4.0664,2459.3,2459.1,1.06646935]
[1725036798957,3.61445,2459.2,2459.1,0.00610252]
[1725036799160,4.58455,2459.2,2459.1,0.61198488]
[1725036799665,3.67804353,2459.5,2459.4,0.40662]
[1725036799666,3.2078,2459.5,2459.4,0.40662]
[1725036799861,3.2078,2459.5,2459.3,0.40662]
[1725036800251,3.2078,2459.5,2459.4,0.40662]
[1725036801247,3.2078,2459.5,2459.4,1.01246069]
[1725036801455,3.2078,2459.5,2459.4,0.40662]
[1725036801650,3.2078,2459.5,2459.2,1.59055025]
[1725036801651,7.68,2459.5,2459.2,1.46700683]
[1725036801846,3.2078,2460.6,2459.8,1.01636]
[1725036802157,9.10472184,2460.3,2460.0,0.40652]
[1725036802356,0.40649,2460.2,2459.9,1.46974514]
[1725036802758,4.60734184,2460.1,2459.8,1.06321514]
[1725036802959,3.2078,2460.0,2459.8,1.06321514]
[1725036803150,4.1602,2460.0,2459.8,0.40655]
[1725036803350,4.1602,2460.0,2459.9,0.40654]
[1725036803659,4.1602,2460.0,2459.8,0.40654]
[1725036803960,4.1602,2460.0,2459.9,0.40654]
[1725036804356,4.1602,2460.0,2459.9,1.01193316]
[1725036804865,4.1602,2460.0,2459.9,0.40654]
[1725036805053,4.1602,2460.0,2459.9,1.0120709]
[1725036806266,2.04237201,2460.3,2460.1,0.40649]
[1725036806451,2.44884201,2460.3,2460.0,0.40651]
[1725036806652,4.28416018,2460.2,2460.1,0.4065]
[1725036806857,2.04237201,2460.3,2460.1,0.4065]
[1725036807457,4.62641605,2460.2,2460.1,0.4065]
[1725036807871,4.62641605,2460.2,2460.1,1.42276]
[1725036808161,0.00610252,2460.4,2460.3,1.42265]
[1725036808357,0.00610252,2460.4,2460.3,12.38359593]
[1725036808559,0.00610252,2460.4,2460.3,11.85201434]
[1725036809057,0.00610252,2460.4,2460.3,13.26226912]
[1725036809272,0.00610252,2460.4,2460.3,12.79747218]
[1725036809454,0.00610252,2460.4,2460.3,12.0815207]
[1725036809653,0.00610252,2460.4,2460.3,13.67634341]
[1725036809863,0.00610252,2460.4,2460.3,8.80256176]
[1725036810067,0.00610252,2460.4,2460.3,3.61427]
[1725036810458,0.00610252,2460.4,2460.3,4.67723786]
[1725036810862,0.00610252,2460.4,2460.3,5.69693039]
[1725036811055,0.00610252,2460.4,2460.3,5.50543674]
[1725036811261,0.00610252,2460.4,2460.3,6.11096189]
[1725036811658,0.00610252,2460.4,2460.3,6.71648431]
[1725036812264,10.07090252,2460.4,2460.3,3.10221431]
[1725036812569,16.17419962,2460.4,2460.3,0.8895905]
[1725036812770,17.14289962,2460.4,2460.3,0.8895905]
[1725036814064,0.40652,2460.0,2459.9,1.06296786]
[1725036814265,0.40652,2460.0,2459.8,1.46951786]
[1725036814459,0.8865,2459.9,2459.8,1.46951786]
[1725036814665,0.8865,2459.9,2459.8,2.48951174]
[1725036814962,1.29304,2459.9,2459.8,2.08296174]
[1725036815160,1.29304,2459.9,2459.8,2.48951174]
[1725036815363,1.29304,2459.9,2459.8,2.08296174]
[1725036815559,13.8719788,2459.9,2459.8,0.60576366]
[1725036815864,0.40657,2459.7,2459.6,1.06296786]
[1725036816056,0.40657,2459.7,2459.6,2.08282547]
[1725036816257,0.40657,2459.7,2459.6,2.48941547]
[1725036816258,9.1671545,2459.7,2459.6,2.48941547]
[1725036816662,9.1671545,2459.7,2459.6,2.08282547]
[1725036816966,8.7605845,2459.7,2459.6,2.48941547]
[1725036817367,8.7605845,2459.7,2459.6,3.36871783]
[1725036817667,9.1671545,2459.7,2459.6,2.96212783]
[1725036817855,9.1671545,2459.7,2459.6,2.96200928]
[1725036818366,16.1835845,2459.7,2459.6,0.6056343]
[1725036818564,9.1671545,2459.7,2459.6,1.01979774]
[1725036818764,9.1671545,2459.7,2459.6,0.40659]
[1725036818765,4.6949845,2459.7,2459.6,0.40659]
[1725036818969,4.6949845,2459.7,2459.6,5.28659213]
[1725036819172,4.6949845,2459.7,2459.6,7.89788484]
[1725036819371,1.28849,2460.2,2460.0,0.4065]
[1725036819566,0.882,2460.2,2459.9,1.06351129]
[1725036819772,4.39177547,2460.1,2460.0,1.4262039]
[1725036820268,4.39177547,2460.1,2460.0,0.6055936]
[1725036820269,8.86307547,2460.1,2460.0,0.6055936]
[1725036820468,8.86307547,2460.1,2459.9,0.40654]
[1725036820771,8.86307547,2460.1,2459.8,1.47005129]
[1725036820772,0.40652,2460.0,2459.8,1.47005129]
[1725036820972,0.40652,2460.0,2459.9,0.60551162]
[1725036821164,4.79828547,2460.1,2459.9,1.01204162]
[1725036821365,4.79828547,2460.1,2459.9,0.40653]
[1725036821674,4.79828547,2460.1,2460.0,0.40652]
[1725036821866,4.79828547,2460.1,2459.9,0.40652]
[1725036822170,0.40653,2460.0,2459.8,1.47006129]
[1725036822569,4.52048777,2459.9,2459.7,1.97481129]
[1725036822770,4.92703777,2459.9,2459.8,0.60537673]
[1725036823264,8.99263777,2459.9,2459.8,0.60537673]
[1725036823971,0.40657,2459.7,2459.6,1.06351129]
[1725036824379,8.76344065,2459.7,2459.6,1.66890274]
[1725036824560,12.98767065,2459.7,2459.6,0.60539145]
[1725036824765,12.98767065,2459.7,2459.3,1.47014129]